Cogmind - Beta 13 @@@ ROGUE MODE // 2024.04.07 @ 18:06:40 Player: Copyrite Result: Destroyed by J3-SN3(R) with Subdweller Laser Performance ------------- Evolutions (0) 0 Regions Visited (3) 600 Robots Destroyed (13) 65 Value Destroyed (317) 317 Prototype IDs (10) 200 Alien Tech Used (0) 0 Bonus (0) 0 TOTAL SCORE: 1182 Bonus ------- None Cogmind --------- Core Integrity 0/250 Matter 292/300 Energy 100/100 System Corruption 0% Temperature Cool (6) Movement Walking (190) Ox1 Location -10/Subcaves Parts ------- > --- POWER (1) -------- (None) > --- PROPULSION (2) --- Aluminum Leg Aluminum Leg > --- UTILITY (2) ------ Large Storage Unit Signal Interpreter > --- WEAPON (2) ------- Battle Cannon Heavy Hammer > --- INVENTORY (15) --- Light Treads Spiked Treads Small Storage Unit Sensor Array Signal Interpreter V3-11A's Pendant Power Bank Riot Gun Autogun Autogun Battle Rifle Grenade Launcher Flamer Peak State ------------ > --- POWER ------------ Ion Engine > --- PROPULSION ------- Light Treads Spiked Treads > --- UTILITY ---------- Large Storage Unit Signal Interpreter > --- WEAPON ----------- Battle Cannon Heavy Hammer > --- INVENTORY -------- Light Ion Engine Light Treads Aluminum Leg Aluminum Leg Small Storage Unit Sensor Array Signal Interpreter V3-11A's Pendant Power Bank Riot Gun Autogun Autogun Battle Rifle Grenade Launcher Flamer [Rating: 13] Favorites ----------- Power Ion Engine Engine Ion Engine Propulsion Light Treads Treads Light Treads Leg Aluminum Leg Utility Signal Interpreter Storage Large Storage Unit Processor Signal Interpreter Weapon Heavy Hammer Energy Gun Medium Laser Ballistic Gun Assault Rifle Ballistic Cannon Battle Cannon Impact Weapon Heavy Hammer Build | -11 -10 -10 -10 ------- Run | Yrd Mat Min Sub Slots Evolved . | . . . . Power . | . . . . Propulsion . | . . . . Utility . | . . . . Weapon . | . . . . Parts Attached 19 | 8 5 . 6 Power 4 | 2 . . 2 Engine 4 | 2 . . 2 Core . | . . . . Reactor . | . . . . Propulsion 5 | 2 . . 3 Treads 3 | 2 . . 1 Leg 2 | . . . 2 Wheel . | . . . . Hover . | . . . . Flight . | . . . . Utility 3 | 1 2 . . Device . | . . . . Storage 2 | 1 1 . . Processor 1 | . 1 . . Hackware . | . . . . Protection . | . . . . Artifact . | . . . . Weapon 7 | 3 3 . 1 Energy Gun 2 | 2 . . . Energy Cannon . | . . . . Ballistic Gun 3 | 1 2 . . Ballistic Cannon 1 | . . . 1 Launcher . | . . . . Special Weapon . | . . . . Impact Weapon 1 | . 1 . . Slashing Weapon . | . . . . Piercing Weapon . | . . . . Special Melee Weapon . | . . . . Unidentified Prototypes . | . . . . Parts Lost 3 | . . . 3 Power 2 | . . . 2 Propulsion 1 | . . . 1 Utility . | . . . . Weapon . | . . . . Highest Loss Streak 3 | . . . 3 To Critical Strikes . | . . . . Average Slot Usage (%) 98 | . 98 100 97 Engine 13 | . 14 14 11 Treads 26 | . 28 28 24 Leg 1 | . . . 3 Storage 14 | . 14 14 14 Processor 13 | . 12 14 14 Ballistic Gun 11 | . 22 14 2 Ballistic Cannon 5 | . . . 11 Impact Weapon 9 | . 2 14 14 Naked Turns . | . . . . Heaviest Build 31 | 13 30 30 31 Greatest Support 40 | 40 40 40 40 Greatest Overweight (x) 1 | . . . 1 Average Overweight (x) . | . . . . Largest Inventory Capacity 15 | 8 15 15 15 Average Capacity 13 | 7 12 15 15 Most Carried 15 | 4 12 12 15 Average Carried 10 | 2 7 12 13 Final Capacity 15 | 8 15 15 15 Final Carried 13 | 4 12 12 13 Class Distribution -------------------- 100% | Mutant Dominant Class ---------------- Mutant | -10/Materials Mutant | -10/Mines Mutant | -10/Subcaves Resources | -11 -10 -10 -10 ----------- Run | Yrd Mat Min Sub Matter Collected 474 | 189 . 19 266 Remotely . | . . . . Salvage Created 349 | . 92 27 230 Parts 19 | . 1 1 17 Haulers Intercepted . | . . . . Recyclers Shooed . | . . . . Parts Field Recycled . | . . . . Retrieved Matter . | . . . . Parts Self-Destructed 11 | . . . 11 Prevented . | . . . . Kills | -11 -10 -10 -10 ------- Run | Yrd Mat Min Sub Combat Hostiles Destroyed 12 | . 2 2 8 Melee 3 | . . 1 2 Guns 5 | . . 1 4 Cannons 1 | . . . 1 Classes Destroyed 5 | . 2 1 2 Operator 1 | . 1 . . Swarmer 6 | . . 2 4 Grunt 2 | . 2 . . Cobbler 1 | . . . 1 Subdweller 4 | . . . 4 Best Kill Streak 4 | . 2 2 4 Combat Bots Only 4 | . 2 2 4 Max Kills in Single Turn 1 | . 1 1 1 Gunslinging . | . . . . Exploded . | . . . . Melee 1 | . . 1 1 Uniques/NPCs Destroyed . | . . . . Combat | -11 -10 -10 -10 -------- Run | Yrd Mat Min Sub Hostile Shots Fired 112 | . 2 16 94 Missed 36 | . 1 5 30 Damage Taken 1054 | . 18 95 941 Core 258 | . . 6 252 Absorbed by Shields . | . . . . Core Remaining (%) 100 | 100 . . . Volleys Fired 27 | . . 2 25 Largest 1 | . . 1 1 Hottest 39 | . . 20 39 Shots Fired 27 | . . 2 25 Gun 14 | . . 2 12 Cannon 13 | . . . 13 Launcher . | . . . . Special . | . . . . Kinetic 27 | . . 2 25 Thermal . | . . . . Explosive . | . . . . Electromagnetic . | . . . . Robot Hit Streak 15 | . . 1 15 Robot Miss Streak 2 | . . 1 2 Penetration Max . | . . . . Secondary Targets . | . . . . Shots Hit Robots 35 | . 3 2 30 Core Hits 10 | . . 2 8 Critical Kills . | . . . . Critical Parts Destroyed 2 | . . . 2 Critical Strikes 3 | . . . 3 Blast 1 | . . . 1 Smash 2 | . . . 2 Melee Attacks 30 | . 3 3 24 Impact 30 | . 3 3 24 Slashing . | . . . . Piercing . | . . . . Sneak Attacks 1 | . . . 1 Combat Hostiles . | . . . . Follow-up Attacks . | . . . . Damage Inflicted 917 | . 140 62 715 Guns 111 | . . 10 101 Cannons 302 | . . . 302 Explosions . | . . . . Melee 504 | . 140 52 312 Ramming . | . . . . Kinetic 413 | . . 10 403 Thermal . | . . . . Explosive . | . . . . Electromagnetic . | . . . . Impact 504 | . 140 52 312 Slashing . | . . . . Piercing . | . . . . Highest Corruption . | . . . . Average Corruption . | . . . . Corruption Purged . | . . . . Corruption Blocked . | . . . . Overload Shots . | . . . . Overflow Damage 181 | . 40 . 141 Projectiles . | . . . . Explosions . | . . . . Melee 181 | . 40 . 141 Knockbacks 3 | . 1 . 2 Impact 3 | . 1 . 2 Kinetic . | . . . . Secondary . | . . . . Self-Inflicted Damage . | . . . . Shots . | . . . . Rammed . | . . . . Targets Rammed . | . . . . Kicked . | . . . . Crushed . | . . . . Highest Temperature . | . . . . Average Temperature . | . . . . Received Heat Transfer 243 | . 9 . 234 Siege Activations . | . . . . Robots Corrupted . | . . . . Combat Hostiles . | . . . . Parts Fried 7 | . 5 . 2 Impact Corruptions 7 | . 3 . 4 Robots Melted . | . . . . Combat Hostiles . | . . . . Parts Melted . | . . . . Heat Transferred . | . . . . Parts Sabotaged . | . . . . Parts Stolen . | . . . . Parts Stripped . | . . . . Power Chain Reactions . | . . . . Alert | -11 -10 -10 -10 ------- Run | Yrd Mat Min Sub Peak Influence 85 | . 85 73 . Initial 33 | . . 33 . Average 37 | . 30 69 . Maximum Alert Level . | . . . . Low Security (%) 100 | 100 100 100 . Level 1 . | . . . . Level 2 . | . . . . Level 3 . | . . . . Level 4 . | . . . . Level 5 . | . . . . High Security . | . . . . Max Security . | . . . . Squads Dispatched 2 | . 2 . . Investigation 1 | . 1 . . Extermination . | . . . . Reinforcement 1 | . 1 . . Assault . | . . . . Garrison . | . . . . Intercept . | . . . . Searches Triggered . | . . . . Construction Impeded . | . . . . Haulers Reinforced . | . . . . Active Scanning Responses . | . . . . Cargo Convoy Interrupts . | . . . . Stealth | -11 -10 -10 -10 --------- Run | Yrd Mat Min Sub Distress Signals . | . . . . Communications Jammed . | . . . . Distress Signals . | . . . . Times Spotted 36 | . 14 3 19 Peak Tracking Total 4 | . 3 3 4 Tactical Retreats 3 | . 1 . 2 Traps | -11 -10 -10 -10 ------- Run | Yrd Mat Min Sub Traps Triggered 1 | . 1 . . Indirectly . | . . . . Trap Hack Attempts . | . . . . Triggered . | . . . . Disarmed 6 | . 6 . . Reprogrammed . | . . . . Reused . | . . . . Traps Extracted . | . . . . Installed . | . . . . Triggered . | . . . . Machines | -11 -10 -10 -10 ---------- Run | Yrd Mat Min Sub Machines Disabled 1 | . . . 1 Max in Single Turn 1 | . . . 1 Machines Repaired . | . . . . Machines Dismantled . | . . . . Machines Sabotaged . | . . . . Overloaded Fab Kills . | . . . . Hacking | -11 -10 -10 -10 --------- Run | Yrd Mat Min Sub Machines Accessed 8 | . 6 . 2 Terminals 6 | . 6 . . Fabricators . | . . . . Repair Stations . | . . . . Recycling Units . | . . . . Scanalyzers . | . . . . Garrison Access . | . . . . Total Hacks 32 | . 21 . 11 Successful 21 | . 10 . 11 Failed 11 | . 11 . . Catastrophic 2 | . 2 . . Database Lockouts . | . . . . Manual 19 | . 19 . . Terminals 21 | . 21 . . Fabricators . | . . . . Repair Stations . | . . . . Recycling Units . | . . . . Scanalyzers . | . . . . Garrison Access . | . . . . Terminal Hacks 16 | . 5 . 11 Record 10 | . . . 10 Branch Access Points 1 | . 1 . . Emergency Access Points 1 | . 1 . . Disarm Traps 2 | . 2 . . Recall Investigation 1 | . 1 . . Derelict Proto ID Bank 1 | . . . 1 Fabricator Hacks . | . . . . Repair Station Hacks . | . . . . Recycling Unit Hacks . | . . . . Scanalyzer . | . . . . Garrison Access Hacks . | . . . . Unauthorized Hacks 5 | . 5 . . Terminals 5 | . 5 . . Botnet 5 | . 5 . . Fabricators . | . . . . Repair Stations . | . . . . Recycling Units . | . . . . Scanalyzers . | . . . . Garrison Access . | . . . . Data Cores Recovered 1 | . 1 . . Used . | . . . . Hacking Detections 4 | . 4 . . Full Trace Events . | . . . . Feedback Events . | . . . . Feedback Blocked . | . . . . Robot Schematics Acquired . | . . . . Robots Built . | . . . . Authchips . | . . . . Time . | . . . . Total Robot Build Rating . | . . . . Part Schematics Acquired . | . . . . Parts Built . | . . . . Authchips . | . . . . Time . | . . . . Total Part Build Rating . | . . . . Parts Repaired . | . . . . Time . | . . . . Parts Recycled . | . . . . Recycled Matter . | . . . . Retrieved Matter . | . . . . Retrieved Components . | . . . . Parts Scanalyzed . | . . . . Part Schematics Acquired . | . . . . Parts Damaged . | . . . . Bothacking | -11 -10 -10 -10 ------------ Run | Yrd Mat Min Sub Used RIF Installer . | . . . . Robots Hacked . | . . . . Non-combat . | . . . . Combat . | . . . . Robot Hacks Applied . | . . . . Relay Couplers Released . | . . . . Fabnet Peak Effective % . | . . . . Robots Rewired . | . . . . Allies Hacked . | . . . . Hacks Repelled . | . . . . Allies | -11 -10 -10 -10 -------- Run | Yrd Mat Min Sub Total Allies . | . . . . Largest Group . | . . . . Highest-Rated Group . | . . . . Highest-Rated Ally . | . . . . Total Orders . | . . . . Ally Attacks . | . . . . Total Damage . | . . . . Kills . | . . . . Allies Corrupted . | . . . . Allies Melted . | . . . . Intel | -11 -10 -10 -10 ------- Run | Yrd Mat Min Sub Robot Analysis Total . | . . . . Derelict Logs Recovered 2 | . . . 2 Drone Launches . | . . . . Drone Recoveries . | . . . . Exploration | -11 -10 -10 -10 ------------- Run | Yrd Mat Min Sub Turns Passed 2506 | 90 951 316 1149 Spaces Moved 1336 | 51 492 188 605 Core 6 | 6 . . . Treads 1260 | 45 492 188 535 Legs 70 | . . . 70 Wheels . | . . . . Hover . | . . . . Flight . | . . . . Fastest Speed 50 | 50 160 160 160 Average Speed 161 | 147 160 160 163 Slowest Speed 190 | 160 160 160 190 Overloaded Moves . | . . . . Propulsion Burnouts . | . . . . Robots Hopped . | . . . . Cave-ins Triggered . | . . . . Exploration Rate (%) 34 | 4 57 33 45 Regions Visited 3 Branch Regions 2 Pre-discovered Areas 1 | . . . 1 Known Exits Taken 2 | . 1 1 . Unknown Exits Taken 1 | 1 . . . Scrap Searched 3 | . . . 3 Spaces Dug 5 | . . . 5 Terrain Destroyed 5 | . . . 5 Melee 5 | . . . 5 Projectile . | . . . . AOE . | . . . . Terrain Rammed . | . . . . Walls Destroyed . | . . . . Machines Disabled . | . . . . Actions | -11 -10 -10 -10 --------- Run | Yrd Mat Min Sub Total 1606 | 62 648 196 700 Wait 176 | . 142 4 30 Move 1333 | 50 491 187 605 Hop . | . . . . Pick Up 17 | 4 7 . 6 Fast Attach 7 | 6 1 . . Attach 2 | . . . 2 Detach . | . . . . Swap 10 | 2 4 . 4 Drop 4 | . . . 4 Fire 27 | . . 2 25 Melee 30 | . 3 3 24 Ram . | . . . . Kick . | . . . . Crush . | . . . . Escape Stasis . | . . . . Rewire . | . . . . Trap . | . . . . Miscellaneous . | . . . . Route ------- -11/Scrapyard -10/Materials (discovered 2 exits: *Mat / *Min) -10/Mines (discovered 2 exits: *Mat / *Sub) -10/Subcaves (discovered 1 exit: [*Rec]) History --------- Turn | Location | Event 22 | -11/Scrapyard | Discovered new exit (range 16) 91 | -11/Scrapyard | Entered Materials 313 | -10/Materials | Build established: Mutant 705 | -10/Materials | Discovered new exit (range 15) 728 | -10/Materials | Identified exit to Materials 988 | -10/Materials | Discovered new exit (range 10) 1016 | -10/Materials | Identified exit to Mines 1042 | -10/Materials | Entered Mines 1151 | -10/Mines | Assembled infested the area 1156 | -10/Mines | Assisted by a Guerilla fighting off Assembled 1273 | -10/Mines | Discovered exit to Materials (range 8) 1345 | -10/Mines | Discovered new exit (range 10) 1356 | -10/Mines | Identified exit to Subcaves 1358 | -10/Mines | Entered Subcaves 1384 | -10/Subcaves | Discovered new exit (range 13) 1419 | -10/Subcaves | Learned location of 1 exit from Materials 1585 | -10/Subcaves | Visited 4L-MR0's lab 1606 | -10/Subcaves | Found Power Bank 1716 | -10/Subcaves | Shifting Twisted Machinery released Sub. Machine Gun 1759 | -10/Subcaves | Shifting Twisted Machinery released Shrapnel Trap 1779 | -10/Subcaves | Visited triangular shrine 1792 | -10/Subcaves | Found Prototype Device 1939 | -10/Subcaves | Visited Clippyterm 1987 | -10/Subcaves | Shifting Twisted Machinery released Spk. Treads 2045 | -10/Subcaves | Shifting Twisted Machinery released Battle Rifle 2302 | -10/Subcaves | Shifting Twisted Machinery released Battle Cannon 2302 | -10/Subcaves | Shifting Twisted Machinery released Mak. Flight Unit 2345 | -10/Subcaves | Core integrity fell below 50% 2367 | -10/Subcaves | Lost 3 parts (2p1n) 2396 | -10/Subcaves | Learned location of Mines (-8) 2494 | -10/Subcaves | Core integrity fell below 20% 2507 | -10/Subcaves | Destroyed by J3-SN3(R) with Subdweller Laser Last Messages --------------- Machinery. Lgt. Ion Engine destroyed. Ion Engine destroyed. Lgt. Treads destroyed. Destroyed Scrap Shield. ZO-AKI(R) Disposable Heat Sink blasted off. Subatomizers dissect the Disposable Heat Sink. ZO-AKI(R) destroyed. Acquired 2 matter. Subatomizers dissect the Disposable Heat Sink. DG-H7H(R) destroyed. Acquired 18 matter. Subatomizers dissect the Disposable Heat Sink. Acquired 4 matter. Acquired 5 matter. Acquired derelict log, extracted data. World map updated: -8/Mines. C1-0S9(R) destroyed. Acquired 58 matter. Subatomizers dissect the Sub. Monowheel. Map ----- +----------------------------------------------------+ | ?????????????????????????????????????????????????? | | ?????????????????????????????????????????????????? | | ?????????????????????????????????????????????????? | | ?????????????????????????????????????????????????? | | ?????????????????????????????????????????????????? | | ?????????????????????????????????????????????????? | | ?????????????????????????????????????????????????? | | ?????????????????????????????????????????????????? | | ?????????????????????????????????????????????????? | | ?????????????????????????????????????????????????? | | ??????" ????????????????????????????????????????? | | ?????# ?????????????????????????????????????????? | | ????# ?????????????????????????????????????????? | | #?? ??????????????????????????????????????????? | | ##? ##?????????????????????????????????????????? | | ??# #???????????????????? ??????????????????? | | ?## "#?????? ???????????? " ?"??????????????? | | ### "##????# ? ?????????#""" """#??????????????? | | ## #??## ?????????#""""""" #??????????????? | | # ####""" ??????????#""""""" ##?????????????? | | ## ""????????????#" "" "" ### ?????????? | | #? ???###???????# "" "" #????????? | | #?# #??## ##???????#" " ""?????????? | | #### #### #?####### ### "" """?????????? | | ### ## ### =## ##?????"" ??????????? | | # ## ## ## &@!* #??????????????????? | | ## ["R"""#??????????????????? | | ?# """""##?????????????????? | | ?# # # "#????????????????? | | ?# #### ### "" #???????????????? | | ?# #??#######?#### ######???????????????? | | ?########?????????????#######????????????????????? | | ?????????????????????????????????????????????????? | | ?????????????????????????????????????????????????? | | ?????????????????????????????????????????????????? | | ?????????????????????????????????????????????????? | | ?????????????????????????????????????????????????? | | ?????????????????????????????????????????????????? | | ?????????????????????????????????????????????????? | | ?????????????????????????????????????????????????? | | ?????????????????????????????????????????????????? | | ?????????????????????????????????????????????????? | | ?????????????????????????????????????????????????? | | ?????????????????????????????????????????????????? | | ?????????????????????????????????????????????????? | | ?????????????????????????????????????????????????? | | | | | | | | | +----------------------------------------------------+ Best States ------------- Heat Dissipation 25 Energy Generation 10 Energy Capacity 250 Matter Stores 295 Matter Capacity 300 Sight Range 16 Terrain Scan Density 10 Evasion (%) 40 Recoil Reduction 2 Item Schematics ----------------- None Robot Schematics ------------------ None Fabricated ------------ Nothing Alien Tech Used ----------------- None Achievements -------------- None Challenges ------------ None Game ------ Seed NeutronSchematicImmobilizer Manual? 0 Play Time 00:20:46 Cumulative 13.3 hours Start 2024.04.07 @ 17:48:32 End 2024.04.07 @ 18:06:40 Sessions 1 Manual Loads 0 Difficulty Rogue Special Mode None Game No. 24 Rogue 24 Adventurer 0 Explorer 0 Win Type - Total 0 Types 0/0/0/0/0/0/0/0/0 Lore% 10 Gallery% 19 Achievement% 19 Wizard Run 0 Options --------- Layout 1 ASCII 0 Keyboard 0 Movement Numpad Keybinds 0 Fullscreen 1 Font 32/SmallcapsGlow Map View 50x35 Zoom Use 0% Tactical HUD 0 Map Filters NONE Filters NONE Steam 1 RUN: b966930e-5280-49ff-a5a8-f5db3911b822